[Event "Late-Titled-Tuesday-Blitz-October-17-2023"]
[Site "Chess.com"]
[Date "2023.10.17"]
[Round "3"]
[White "GadimbayliA"]
[Black "Jospem"]
[Result "0-1"]
[WhiteElo "2833"]
[BlackElo "3137"]
[TimeControl "180+1"]
[EndTime "14:27:09 PDT"]
[Termination "Jospem won by resignation"]

1. Nf3 {[%clk 0:02:58.4]} 1... Nf6 {[%clk 0:03:00.5]} 2. Nc3 {[%clk 0:02:58.4]}
2... e6 {[%clk 0:03:01]} 3. e4 {[%clk 0:02:58.7]} 3... d5 {[%clk 0:03:01.6]} 4.
e5 {[%clk 0:02:58.1]} 4... Nfd7 {[%clk 0:03:01.4]} 5. d4 {[%clk 0:02:58.3]} 5...
c5 {[%clk 0:03:01.9]} 6. Be3 {[%clk 0:02:58.4]} 6... Nc6 {[%clk 0:03:01.4]} 7.
Bb5 {[%clk 0:02:54.3]} 7... a6 {[%clk 0:02:57.4]} 8. Bxc6 {[%clk 0:02:54.3]}
8... bxc6 {[%clk 0:02:58.3]} 9. O-O {[%clk 0:02:52]} 9... cxd4 {[%clk
0:02:57.5]} 10. Nxd4 {[%clk 0:02:35.5]} 10... c5 {[%clk 0:02:56.9]} 11. Nxe6
{[%clk 0:02:09.8]} 11... fxe6 {[%clk 0:02:57.8]} 12. Nxd5 {[%clk 0:02:10.3]}
12... exd5 {[%clk 0:02:41]} 13. Qxd5 {[%clk 0:02:10.5]} 13... Nb6 {[%clk
0:02:41.6]} 14. Qc6+ {[%clk 0:02:04.9]} 14... Bd7 {[%clk 0:02:41.3]} 15. Qe4
{[%clk 0:02:04.7]} 15... Qc8 {[%clk 0:02:14.5]} 16. Rad1 {[%clk 0:01:45.1]}
16... Qc6 {[%clk 0:02:00.5]} 17. Qf4 {[%clk 0:01:37.5]} 17... Be6 {[%clk
0:01:55.2]} 18. Qg3 {[%clk 0:01:35.6]} 18... Nd5 {[%clk 0:01:49.4]} 19. Bg5
{[%clk 0:01:25.8]} 19... c4 {[%clk 0:01:45.4]} 20. b3 {[%clk 0:01:17.1]} 20...
Bb4 {[%clk 0:01:36.4]} 21. a3 {[%clk 0:01:14.5]} 21... Bc5 {[%clk 0:01:28.3]}
22. bxc4 {[%clk 0:01:14.2]} 22... Nb6 {[%clk 0:01:28.1]} 23. Kh1 {[%clk
0:00:17.6]} 23... O-O {[%clk 0:01:25.8]} 24. Bf6 {[%clk 0:00:17.6]} 24... Ra7
{[%clk 0:01:25.1]} 25. f4 {[%clk 0:00:17.9]} 25... Bf5 {[%clk 0:01:21.3]} 26.
Qg5 {[%clk 0:00:12.6]} 26... Qe6 {[%clk 0:01:21.5]} 27. h3 {[%clk 0:00:06.1]}
27... h6 {[%clk 0:01:21.7]} 28. Qh4 {[%clk 0:00:04.9]} 28... Nxc4 {[%clk
0:01:20]} 0-1

[Event "Late-Titled-Tuesday-Blitz-October-17-2023"]
[Site "Chess.com"]
[Date "2023.10.17"]
[Round "3"]
[White "kirillshevchenko"]
[Black "Russian_berezka"]
[Result "0-1"]
[WhiteElo "2911"]
[BlackElo "2701"]
[TimeControl "180+1"]
[EndTime "14:27:15 PDT"]
[Termination "Russian_berezka won by resignation"]

1. e4 {[%clk 0:03:00.9]} 1... c5 {[%clk 0:02:58.8]} 2. a3 {[%clk 0:03:01.2]}
2... d5 {[%clk 0:02:57.1]} 3. exd5 {[%clk 0:02:59.3]} 3... Qxd5 {[%clk 0:02:58]}
4. Nc3 {[%clk 0:02:58.5]} 4... Qd8 {[%clk 0:02:56.5]} 5. b4 {[%clk 0:02:57.6]}
5... cxb4 {[%clk 0:02:56.2]} 6. axb4 {[%clk 0:02:58.5]} 6... Nf6 {[%clk
0:02:56]} 7. Nf3 {[%clk 0:02:57.8]} 7... Bg4 {[%clk 0:02:52.8]} 8. h3 {[%clk
0:02:53.9]} 8... Bh5 {[%clk 0:02:45.7]} 9. Bb5+ {[%clk 0:02:50.3]} 9... Nbd7
{[%clk 0:02:45.4]} 10. g4 {[%clk 0:02:34.1]} 10... Bg6 {[%clk 0:02:36.4]} 11. g5
{[%clk 0:02:34.4]} 11... a6 {[%clk 0:02:22.6]} 12. Ba4 {[%clk 0:02:15.8]} 12...
Ne4 {[%clk 0:02:10.2]} 13. Ne5 {[%clk 0:01:59.9]} 13... b5 {[%clk 0:01:55.4]}
14. Nxe4 {[%clk 0:01:14.1]} 14... Nxe5 {[%clk 0:01:44.7]} 15. Ng3 {[%clk
0:00:42.6]} 15... bxa4 {[%clk 0:01:38.7]} 16. Bb2 {[%clk 0:00:42.4]} 16... Qd5
{[%clk 0:01:31.5]} 17. f4 {[%clk 0:00:23.6]} 17... Qg2 {[%clk 0:01:26.4]} 18.
Ra3 {[%clk 0:00:19.3]} 18... Nd3+ {[%clk 0:01:22.3]} 19. Rxd3 {[%clk 0:00:17.9]}
19... Bxd3 {[%clk 0:01:22.3]} 20. Qg4 {[%clk 0:00:13.3]} 20... Bf5 {[%clk
0:01:19.7]} 21. Qxf5 {[%clk 0:00:08.3]} 21... Qxg3+ {[%clk 0:01:19.6]} 22. Kf1
{[%clk 0:00:08.6]} 22... Qf3+ {[%clk 0:01:15.3]} 23. Kg1 {[%clk 0:00:08.7]}
23... Qd1+ {[%clk 0:01:15.4]} 24. Kg2 {[%clk 0:00:08.5]} 24... Qxd2+ {[%clk
0:01:14.6]} 25. Kf3 {[%clk 0:00:08.3]} 25... e6 {[%clk 0:01:09.3]} 26. Qa5
{[%clk 0:00:05]} 26... Qd5+ {[%clk 0:01:07.8]} 0-1

[Event "Late-Titled-Tuesday-Blitz-October-17-2023"]
[Site "Chess.com"]
[Date "2023.10.17"]
[Round "3"]
[White "alexrustemov"]
[Black "santosalberto1987"]
[Result "1-0"]
[WhiteElo "2822"]
[BlackElo "2413"]
[TimeControl "180+1"]
[EndTime "14:27:22 PDT"]
[Termination "alexrustemov won on time"]

1. d4 {[%clk 0:02:54.4]} 1... d5 {[%clk 0:03:00.1]} 2. c4 {[%clk 0:02:54.6]}
2... c6 {[%clk 0:03:00.3]} 3. Nc3 {[%clk 0:02:55.1]} 3... Nf6 {[%clk 0:03:00.8]}
4. e3 {[%clk 0:02:55.8]} 4... a6 {[%clk 0:02:57.2]} 5. Qc2 {[%clk 0:02:53.5]}
5... b5 {[%clk 0:02:54]} 6. b3 {[%clk 0:02:52.4]} 6... e6 {[%clk 0:02:51.6]} 7.
Nf3 {[%clk 0:02:51.1]} 7... Nbd7 {[%clk 0:02:51.1]} 8. Bd3 {[%clk 0:02:47.8]}
8... Bb7 {[%clk 0:02:50.2]} 9. O-O {[%clk 0:02:42.8]} 9... Be7 {[%clk
0:02:50.1]} 10. Bb2 {[%clk 0:02:42.7]} 10... O-O {[%clk 0:02:49.5]} 11. c5
{[%clk 0:02:41.7]} 11... h6 {[%clk 0:02:45.1]} 12. h3 {[%clk 0:02:40.1]} 12...
a5 {[%clk 0:02:44.1]} 13. a3 {[%clk 0:02:40]} 13... Qc7 {[%clk 0:02:39.1]} 14.
Ne2 {[%clk 0:02:38.6]} 14... Ba6 {[%clk 0:02:07.9]} 15. b4 {[%clk 0:02:38.4]}
15... axb4 {[%clk 0:02:07.1]} 16. axb4 {[%clk 0:02:38.5]} 16... Bb7 {[%clk
0:02:06.9]} 17. Ne5 {[%clk 0:02:36.5]} 17... Nxe5 {[%clk 0:02:06.1]} 18. dxe5
{[%clk 0:02:36.6]} 18... Nd7 {[%clk 0:02:05.5]} 19. f4 {[%clk 0:02:36.7]} 19...
Rxa1 {[%clk 0:01:59.2]} 20. Bxa1 {[%clk 0:02:31.1]} 20... Ra8 {[%clk 0:01:41.3]}
21. Nd4 {[%clk 0:02:30.6]} 21... Qb8 {[%clk 0:01:40.9]} 22. Bb2 {[%clk
0:02:28.4]} 22... Ra4 {[%clk 0:01:35.1]} 23. Qc3 {[%clk 0:02:27.5]} 23... Nf8
{[%clk 0:01:27.7]} 24. Bc2 {[%clk 0:02:26.9]} 24... Ra8 {[%clk 0:01:25.8]} 25.
Qd3 {[%clk 0:02:22.8]} 25... Ra2 {[%clk 0:01:20.6]} 26. Qc3 {[%clk 0:02:19.8]}
26... Qc7 {[%clk 0:01:12.7]} 27. Bb1 {[%clk 0:02:19.5]} 27... Ra8 {[%clk
0:01:10.9]} 28. Qd3 {[%clk 0:02:20]} 28... Bc8 {[%clk 0:00:58.6]} 29. g4 {[%clk
0:02:14.2]} 29... f6 {[%clk 0:00:58]} 30. Nf3 {[%clk 0:02:05.3]} 30... f5 {[%clk
0:00:44.7]} 31. gxf5 {[%clk 0:02:02.2]} 31... exf5 {[%clk 0:00:44.8]} 32. Nd4
{[%clk 0:01:59.9]} 32... g6 {[%clk 0:00:44.5]} 33. Kh2 {[%clk 0:02:00]} 33...
Kh7 {[%clk 0:00:44.3]} 34. Rg1 {[%clk 0:02:00]} 34... Be6 {[%clk 0:00:40.3]} 35.
Nxe6 {[%clk 0:01:57.4]} 35... Nxe6 {[%clk 0:00:39]} 36. Rxg6 {[%clk 0:01:58.1]}
36... Kxg6 {[%clk 0:00:23.4]} 37. Qxf5+ {[%clk 0:01:56.9]} 37... Kg7 {[%clk
0:00:24.3]} 38. Qxe6 {[%clk 0:01:51.6]} 38... Rg8 {[%clk 0:00:17.5]} 39. Qf5
{[%clk 0:01:43.7]} 39... Qd8 {[%clk 0:00:11.9]} 40. e6+ {[%clk 0:01:40.2]} 40...
Bf6 {[%clk 0:00:01.1]} 41. Qg6+ {[%clk 0:01:40.1]} 41... Kf8 {[%clk 0:00:01.8]}
42. Qxf6+ {[%clk 0:01:40.4]} 42... Qxf6 {[%clk 0:00:01.4]} 43. Bxf6 {[%clk
0:01:41.3]} 1-0

[Event "Late-Titled-Tuesday-Blitz-October-17-2023"]
[Site "Chess.com"]
[Date "2023.10.17"]
[Round "3"]
[White "Zhigalko_Sergei"]
[Black "The_Machine04"]
[Result "1-0"]
[WhiteElo "2955"]
[BlackElo "2712"]
[TimeControl "180+1"]
[EndTime "14:27:26 PDT"]
[Termination "Zhigalko_Sergei won by resignation"]

1. e4 {[%clk 0:03:00.9]} 1... d6 {[%clk 0:02:59.2]} 2. d4 {[%clk 0:03:00.8]}
2... Nf6 {[%clk 0:02:59.4]} 3. Nc3 {[%clk 0:03:01.2]} 3... e5 {[%clk 0:02:59.8]}
4. Nf3 {[%clk 0:03:01.6]} 4... Nbd7 {[%clk 0:02:59.9]} 5. Bc4 {[%clk 0:03:01.7]}
5... Be7 {[%clk 0:03:00.2]} 6. O-O {[%clk 0:03:02.1]} 6... c6 {[%clk 0:03:00.8]}
7. a4 {[%clk 0:03:02]} 7... h6 {[%clk 0:03:01.4]} 8. Re1 {[%clk 0:02:52.1]} 8...
Qc7 {[%clk 0:03:01.6]} 9. Bd3 {[%clk 0:02:43.5]} 9... Nf8 {[%clk 0:02:59.8]} 10.
Ne2 {[%clk 0:02:43.7]} 10... Nh5 {[%clk 0:02:54]} 11. Ng3 {[%clk 0:02:35]} 11...
Nxg3 {[%clk 0:02:53.9]} 12. hxg3 {[%clk 0:02:35.9]} 12... Ng6 {[%clk 0:02:54.4]}
13. Be3 {[%clk 0:02:26.9]} 13... O-O {[%clk 0:02:54.4]} 14. c3 {[%clk
0:02:23.5]} 14... Re8 {[%clk 0:02:54.4]} 15. Qc2 {[%clk 0:02:16.4]} 15... Nf8
{[%clk 0:02:54]} 16. Rad1 {[%clk 0:02:15.4]} 16... a5 {[%clk 0:02:53.9]} 17. Bc4
{[%clk 0:02:11.5]} 17... Be6 {[%clk 0:02:52.4]} 18. Qb3 {[%clk 0:02:11.9]} 18...
Bxc4 {[%clk 0:02:52.1]} 19. Qxc4 {[%clk 0:02:12]} 19... Ne6 {[%clk 0:02:52.3]}
20. Qb3 {[%clk 0:01:59.6]} 20... Bg5 {[%clk 0:02:40.4]} 21. d5 {[%clk
0:01:52.2]} 21... Bxe3 {[%clk 0:02:34.1]} 22. Rxe3 {[%clk 0:01:36.6]} 22... Nc5
{[%clk 0:02:33.2]} 23. Qc4 {[%clk 0:01:36.8]} 23... Red8 {[%clk 0:02:18]} 24.
Nh4 {[%clk 0:01:35.4]} 24... g6 {[%clk 0:02:16.7]} 25. dxc6 {[%clk 0:01:33.8]}
25... Qxc6 {[%clk 0:02:08.4]} 26. Nxg6 {[%clk 0:01:24.3]} 26... Qxa4 {[%clk
0:02:07.2]} 27. Qd5 {[%clk 0:01:14.4]} 27... Qb3 {[%clk 0:01:43.5]} 28. Ne7+
{[%clk 0:01:08.8]} 28... Kf8 {[%clk 0:01:41.6]} 29. Qxb3 {[%clk 0:00:50.8]}
29... Nxb3 {[%clk 0:01:42.5]} 30. Nf5 {[%clk 0:00:51.1]} 30... a4 {[%clk
0:01:40.9]} 31. Nxh6 {[%clk 0:00:49.9]} 31... Ke7 {[%clk 0:01:36.6]} 32. Rf3
{[%clk 0:00:46.8]} 32... f6 {[%clk 0:01:36.5]} 33. Ng4 {[%clk 0:00:40.2]} 33...
Rf8 {[%clk 0:01:35.2]} 34. Ne3 {[%clk 0:00:40.6]} 34... Ra6 {[%clk 0:01:25.3]}
35. Nd5+ {[%clk 0:00:40.8]} 35... Kd7 {[%clk 0:01:16.1]} 36. Nxf6+ {[%clk
0:00:40.8]} 36... Kc6 {[%clk 0:01:15.5]} 37. Nd5 {[%clk 0:00:40.8]} 37... Rxf3
{[%clk 0:01:15]} 38. gxf3 {[%clk 0:00:41.7]} 38... Ra8 {[%clk 0:01:12.6]} 39. f4
{[%clk 0:00:27.4]} 39... Nc5 {[%clk 0:01:12]} 40. f3 {[%clk 0:00:22.2]} 40...
Rg8 {[%clk 0:01:09.6]} 41. Ne7+ {[%clk 0:00:20.5]} 1-0

[Event "Late-Titled-Tuesday-Blitz-October-17-2023"]
[Site "Chess.com"]
[Date "2023.10.17"]
[Round "3"]
[White "ValeriyGrinev"]
[Black "GMKrikor"]
[Result "0-1"]
[WhiteElo "2581"]
[BlackElo "2836"]
[TimeControl "180+1"]
[EndTime "14:27:27 PDT"]
[Termination "GMKrikor won by checkmate"]

1. d4 {[%clk 0:03:00.9]} 1... Nf6 {[%clk 0:02:59.8]} 2. c4 {[%clk 0:03:00.8]}
2... g6 {[%clk 0:03:00.3]} 3. Nc3 {[%clk 0:03:00.7]} 3... d5 {[%clk 0:03:00.3]}
4. Nf3 {[%clk 0:02:59.5]} 4... Bg7 {[%clk 0:03:00]} 5. cxd5 {[%clk 0:03:00]}
5... Nxd5 {[%clk 0:02:57.7]} 6. e4 {[%clk 0:03:00.7]} 6... Nxc3 {[%clk
0:02:58.2]} 7. bxc3 {[%clk 0:03:01.6]} 7... c5 {[%clk 0:02:58.6]} 8. h3 {[%clk
0:03:01.6]} 8... O-O {[%clk 0:02:55.2]} 9. Be2 {[%clk 0:03:01.4]} 9... Qc7
{[%clk 0:02:55.6]} 10. O-O {[%clk 0:03:00.8]} 10... b6 {[%clk 0:02:56.3]} 11.
Be3 {[%clk 0:02:58.8]} 11... Bb7 {[%clk 0:02:56.3]} 12. Qd3 {[%clk 0:02:58.4]}
12... Ba6 {[%clk 0:02:56.8]} 13. Qd2 {[%clk 0:02:58.7]} 13... Bxe2 {[%clk
0:02:56.9]} 14. Qxe2 {[%clk 0:02:59.6]} 14... Nd7 {[%clk 0:02:54.3]} 15. Rac1
{[%clk 0:02:55.4]} 15... Rac8 {[%clk 0:02:54]} 16. d5 {[%clk 0:02:54.2]} 16...
e6 {[%clk 0:02:40.2]} 17. c4 {[%clk 0:02:53.4]} 17... exd5 {[%clk 0:02:36.1]}
18. cxd5 {[%clk 0:02:45.6]} 18... Rfe8 {[%clk 0:02:36.2]} 19. Qc2 {[%clk
0:02:32.1]} 19... Nf6 {[%clk 0:01:40.4]} 20. d6 {[%clk 0:02:00.4]} 20... Qb7
{[%clk 0:01:33.7]} 21. e5 {[%clk 0:01:59.3]} 21... Nd7 {[%clk 0:01:34]} 22. Qa4
{[%clk 0:01:02.7]} 22... b5 {[%clk 0:01:26.8]} 23. Qh4 {[%clk 0:00:46.5]} 23...
Bxe5 {[%clk 0:01:08.6]} 24. Nxe5 {[%clk 0:00:41.2]} 24... Rxe5 {[%clk
0:01:07.9]} 25. Rfd1 {[%clk 0:00:36.1]} 25... Rce8 {[%clk 0:01:06.5]} 26. Rd2
{[%clk 0:00:23.4]} 26... a6 {[%clk 0:01:03.5]} 27. Qg3 {[%clk 0:00:20.8]} 27...
f6 {[%clk 0:01:01.3]} 28. Kh2 {[%clk 0:00:20.2]} 28... c4 {[%clk 0:00:46.5]} 29.
Bd4 {[%clk 0:00:19.4]} 29... Rg5 {[%clk 0:00:46.9]} 30. Qf4 {[%clk 0:00:18.9]}
30... Qxg2# {[%clk 0:00:46.2]} 0-1

[Event "Late-Titled-Tuesday-Blitz-October-17-2023"]
[Site "Chess.com"]
[Date "2023.10.17"]
[Round "3"]
[White "Payyappat"]
[Black "whiteglovethief"]
[Result "1-0"]
[WhiteElo "2478"]
[BlackElo "2630"]
[TimeControl "180+1"]
[EndTime "14:27:28 PDT"]
[Termination "Payyappat won by checkmate"]

1. e4 {[%clk 0:03:00.9]} 1... e6 {[%clk 0:02:59.9]} 2. d4 {[%clk 0:03:00.9]}
2... d5 {[%clk 0:03:00.6]} 3. Nc3 {[%clk 0:03:01.8]} 3... Bb4 {[%clk 0:02:59.8]}
4. e5 {[%clk 0:03:00]} 4... Ne7 {[%clk 0:02:59.3]} 5. a3 {[%clk 0:02:59.5]} 5...
Bxc3+ {[%clk 0:02:59.3]} 6. bxc3 {[%clk 0:03:00.4]} 6... c5 {[%clk 0:02:59]} 7.
Qg4 {[%clk 0:02:59]} 7... Qc7 {[%clk 0:02:58.7]} 8. Qxg7 {[%clk 0:02:53.4]} 8...
Rg8 {[%clk 0:02:58.9]} 9. Qxh7 {[%clk 0:02:53.6]} 9... cxd4 {[%clk 0:02:59.5]}
10. Ne2 {[%clk 0:02:51]} 10... dxc3 {[%clk 0:02:59.8]} 11. f4 {[%clk 0:02:48.4]}
11... Nbc6 {[%clk 0:03:00.2]} 12. Qd3 {[%clk 0:02:47.7]} 12... d4 {[%clk
0:03:00.8]} 13. Nxd4 {[%clk 0:02:44.8]} 13... Nxd4 {[%clk 0:03:01.7]} 14. Qxd4
{[%clk 0:02:45.1]} 14... Bd7 {[%clk 0:03:02.6]} 15. Be3 {[%clk 0:02:44.6]} 15...
Nf5 {[%clk 0:03:02.4]} 16. Qd3 {[%clk 0:02:41.7]} 16... O-O-O {[%clk 0:03:00.6]}
17. Bxa7 {[%clk 0:02:34.9]} 17... Bc6 {[%clk 0:02:55.7]} 18. Qe2 {[%clk
0:02:28.9]} 18... Nd4 {[%clk 0:02:44.9]} 19. Bxd4 {[%clk 0:02:06.1]} 19... Rxd4
{[%clk 0:02:45.8]} 20. Qf2 {[%clk 0:02:05.8]} 20... Re4+ {[%clk 0:02:36.6]} 21.
Kd1 {[%clk 0:02:04.6]} 21... Rd8+ {[%clk 0:02:35.6]} 22. Bd3 {[%clk 0:02:02]}
22... Ba4 {[%clk 0:02:30.6]} 23. Kc1 {[%clk 0:01:53.3]} 23... Red4 {[%clk
0:02:29.4]} 24. Rb1 {[%clk 0:01:49.8]} 24... b5 {[%clk 0:02:28.5]} 25. Rb4
{[%clk 0:01:43.3]} 25... Rxb4 {[%clk 0:02:27.9]} 26. axb4 {[%clk 0:01:44.2]}
26... Bb3 {[%clk 0:02:09.1]} 27. Qc5 {[%clk 0:01:29.7]} 27... Qxc5 {[%clk
0:02:09.2]} 28. bxc5 {[%clk 0:01:30.6]} 28... b4 {[%clk 0:02:05.2]} 29. Ba6+
{[%clk 0:01:26.9]} 29... Kc7 {[%clk 0:02:05.8]} 30. cxb3 {[%clk 0:01:23.6]}
30... Rd2 {[%clk 0:02:05.3]} 31. h4 {[%clk 0:01:19]} 31... Rb2 {[%clk
0:02:03.6]} 32. Bd3 {[%clk 0:01:17.6]} 32... Rxb3 {[%clk 0:02:03.2]} 33. Rh3
{[%clk 0:00:54.4]} 33... Ra3 {[%clk 0:02:02]} 34. Bb1 {[%clk 0:00:52.7]} 34...
Ra8 {[%clk 0:01:43.1]} 35. h5 {[%clk 0:00:51.6]} 35... Rg8 {[%clk 0:01:43.4]}
36. g3 {[%clk 0:00:47.4]} 36... Kc6 {[%clk 0:01:39.1]} 37. h6 {[%clk 0:00:46.7]}
37... Kxc5 {[%clk 0:01:38.7]} 38. h7 {[%clk 0:00:46.3]} 38... Rh8 {[%clk
0:01:38.4]} 39. g4 {[%clk 0:00:46.6]} 39... Kd4 {[%clk 0:01:37.8]} 40. Rd3+
{[%clk 0:00:45.4]} 40... Kc4 {[%clk 0:01:38.2]} 41. Rd7 {[%clk 0:00:44.8]} 41...
b3 {[%clk 0:01:37.6]} 42. Bd3+ {[%clk 0:00:41]} 42... Kb4 {[%clk 0:01:37.2]} 43.
Rb7+ {[%clk 0:00:38.6]} 43... Ka3 {[%clk 0:01:35.2]} 44. Bc4 {[%clk 0:00:31.2]}
44... b2+ {[%clk 0:01:31.3]} 45. Kc2 {[%clk 0:00:30.6]} 45... Rxh7 {[%clk
0:01:32.1]} 46. Kxc3 {[%clk 0:00:26.5]} 46... Rh3+ {[%clk 0:01:32.1]} 47. Bd3
{[%clk 0:00:26.6]} 47... b1=Q {[%clk 0:01:16.7]} 48. Ra7# {[%clk 0:00:24.7]} 1-0

[Event "Late-Titled-Tuesday-Blitz-October-17-2023"]
[Site "Chess.com"]
[Date "2023.10.17"]
[Round "3"]
[White "Baku_Boulevard"]
[Black "Rodalquilar"]
[Result "1-0"]
[WhiteElo "3009"]
[BlackElo "2780"]
[TimeControl "180+1"]
[EndTime "14:27:31 PDT"]
[Termination "Baku_Boulevard won by resignation"]

1. e4 {[%clk 0:03:00.9]} 1... d5 {[%clk 0:03:00]} 2. exd5 {[%clk 0:02:59.5]}
2... Qxd5 {[%clk 0:03:00.9]} 3. Nc3 {[%clk 0:02:59.5]} 3... Qa5 {[%clk 0:03:01]}
4. d4 {[%clk 0:02:56.1]} 4... Nf6 {[%clk 0:03:01.2]} 5. Nf3 {[%clk 0:02:55.8]}
5... Bf5 {[%clk 0:03:01.1]} 6. Bd2 {[%clk 0:02:55.8]} 6... e6 {[%clk 0:03:00.9]}
7. Bc4 {[%clk 0:02:48.7]} 7... Bb4 {[%clk 0:03:00.5]} 8. a3 {[%clk 0:02:47.7]}
8... Bxc3 {[%clk 0:03:00.5]} 9. Bxc3 {[%clk 0:02:48.6]} 9... Qb6 {[%clk
0:03:00.9]} 10. O-O {[%clk 0:02:46.8]} 10... Nc6 {[%clk 0:02:59.7]} 11. a4
{[%clk 0:02:46]} 11... a5 {[%clk 0:02:59.1]} 12. Qe2 {[%clk 0:02:37.5]} 12...
O-O {[%clk 0:02:57.9]} 13. Rad1 {[%clk 0:02:37.5]} 13... Rad8 {[%clk 0:02:56.9]}
14. h3 {[%clk 0:02:37.7]} 14... Rfe8 {[%clk 0:02:54.5]} 15. b3 {[%clk
0:02:30.3]} 15... Be4 {[%clk 0:02:54.2]} 16. Ne5 {[%clk 0:02:26.5]} 16... Nxd4
{[%clk 0:02:52.1]} 17. Bxd4 {[%clk 0:02:08.5]} 17... Rxd4 {[%clk 0:02:52.1]} 18.
c3 {[%clk 0:01:51.4]} 18... Rxd1 {[%clk 0:02:45.5]} 19. Rxd1 {[%clk 0:01:52.3]}
19... Bd5 {[%clk 0:02:45.9]} 20. Nd7 {[%clk 0:01:34.2]} 20... Nxd7 {[%clk
0:02:41.9]} 21. Bxd5 {[%clk 0:01:34.1]} 21... Nc5 {[%clk 0:02:25]} 22. Bc4
{[%clk 0:01:33.8]} 22... h6 {[%clk 0:01:59.7]} 23. Qe3 {[%clk 0:01:30.6]} 23...
Rc8 {[%clk 0:01:26.6]} 24. Rd4 {[%clk 0:01:22.3]} 24... Nxb3 {[%clk 0:01:16.1]}
25. Bxb3 {[%clk 0:01:13.4]} 25... Qxb3 {[%clk 0:01:17]} 26. Rg4 {[%clk
0:01:13.5]} 26... Qd1+ {[%clk 0:01:13.4]} 27. Kh2 {[%clk 0:01:13.8]} 27... Qd6+
{[%clk 0:01:13.4]} 28. g3 {[%clk 0:01:13.1]} 28... Qb6 {[%clk 0:01:03.1]} 29.
Rd4 {[%clk 0:01:06.1]} 29... c6 {[%clk 0:00:57.2]} 30. h4 {[%clk 0:00:56.5]}
30... Rd8 {[%clk 0:00:53.9]} 31. Rd7 {[%clk 0:00:56]} 1-0

[Event "Late-Titled-Tuesday-Blitz-October-17-2023"]
[Site "Chess.com"]
[Date "2023.10.17"]
[Round "3"]
[White "FuenfgegenWilly"]
[Black "Tomytoteph"]
[Result "0-1"]
[WhiteElo "2370"]
[BlackElo "2573"]
[TimeControl "180+1"]
[EndTime "14:27:38 PDT"]
[Termination "Tomytoteph won on time"]

1. Nf3 {[%clk 0:03:00.9]} 1... d5 {[%clk 0:02:59.7]} 2. b3 {[%clk 0:03:01.8]}
2... c6 {[%clk 0:03:00.6]} 3. Bb2 {[%clk 0:03:02.1]} 3... Nf6 {[%clk 0:03:01.2]}
4. g3 {[%clk 0:03:02.6]} 4... Nbd7 {[%clk 0:03:01.8]} 5. Bg2 {[%clk 0:03:03.2]}
5... g6 {[%clk 0:03:02.5]} 6. c4 {[%clk 0:03:03.3]} 6... Bg7 {[%clk 0:03:02.8]}
7. O-O {[%clk 0:03:03.6]} 7... O-O {[%clk 0:03:03.1]} 8. a4 {[%clk 0:03:03.8]}
8... Nc5 {[%clk 0:02:57.1]} 9. b4 {[%clk 0:02:58.7]} 9... Ncd7 {[%clk
0:02:52.1]} 10. d3 {[%clk 0:02:56.2]} 10... Re8 {[%clk 0:02:47.3]} 11. b5 {[%clk
0:02:49.4]} 11... e5 {[%clk 0:02:45.4]} 12. a5 {[%clk 0:02:48.3]} 12... e4
{[%clk 0:02:44.9]} 13. Nfd2 {[%clk 0:02:47.8]} 13... exd3 {[%clk 0:02:39.6]} 14.
exd3 {[%clk 0:02:46.1]} 14... Nc5 {[%clk 0:02:39.3]} 15. Nb3 {[%clk 0:02:43.1]}
15... Bg4 {[%clk 0:02:35.9]} 16. f3 {[%clk 0:02:30.1]} 16... Nxb3 {[%clk
0:02:34]} 17. Qxb3 {[%clk 0:02:29.6]} 17... Bf5 {[%clk 0:02:33.6]} 18. Nd2
{[%clk 0:02:11.4]} 18... Re3 {[%clk 0:02:29.9]} 19. a6 {[%clk 0:01:34.7]} 19...
Rxd3 {[%clk 0:02:27.1]} 20. Qb4 {[%clk 0:01:33.7]} 20... c5 {[%clk 0:02:27.1]}
21. Qxc5 {[%clk 0:01:25.6]} 21... Rxd2 {[%clk 0:02:26.8]} 22. axb7 {[%clk
0:01:25.9]} 22... Rb8 {[%clk 0:02:26.8]} 23. Bc3 {[%clk 0:01:22.4]} 23... Rc2
{[%clk 0:02:19.4]} 24. Ba5 {[%clk 0:01:03.4]} 24... Qd7 {[%clk 0:02:07.7]} 25.
g4 {[%clk 0:01:03.1]} 25... Be6 {[%clk 0:02:06.4]} 26. Qxa7 {[%clk 0:00:51]}
26... Qxb7 {[%clk 0:02:04.3]} 27. Qxb7 {[%clk 0:00:48.1]} 27... Rxb7 {[%clk
0:02:05.2]} 28. cxd5 {[%clk 0:00:42.9]} 28... Nxd5 {[%clk 0:02:03.9]} 29. Rab1
{[%clk 0:00:41.9]} 29... Bd4+ {[%clk 0:02:03.3]} 30. Kh1 {[%clk 0:00:41.7]}
30... Nf4 {[%clk 0:02:04.2]} 31. Rfd1 {[%clk 0:00:27.1]} 31... Be5 {[%clk
0:01:59.8]} 32. Bf1 {[%clk 0:00:23.1]} 32... Bd5 {[%clk 0:01:59.3]} 33. b6
{[%clk 0:00:11.2]} 33... Bxf3+ {[%clk 0:01:59.1]} 34. Kg1 {[%clk 0:00:11.7]}
34... Kg7 {[%clk 0:01:41.9]} 35. Rd8 {[%clk 0:00:06.6]} 35... Ne2+ {[%clk
0:01:33.8]} 36. Kf2 {[%clk 0:00:05.2]} 36... Bxg4 {[%clk 0:01:34.1]} 37. Ke1
{[%clk 0:00:03]} 37... Bxh2 {[%clk 0:01:28.1]} 38. Re8 {[%clk 0:00:02.7]} 38...
Bg3+ {[%clk 0:01:28.3]} 39. Kd1 {[%clk 0:00:03.2]} 39... Nd4+ {[%clk 0:01:23.5]}
0-1